[Event "MČR družstev mladších žáků 2024"]
[Site "Harrachov, Czech Republic"]
[Date "2024.06.16"]
[Round "9.16"]
[White "Hamernikova Iris"]
[Black "Zavrel Daniel"]
[Result "0-1"]
[TimeControl "25+10"]
[WhiteFideId "23745738"]
[BlackFideId "23753951"]
[WhiteElo "1216"]
[BlackElo "1106"]

1. e4 {[%clk 00:25:18]} {[%emt 00:00:01]} e5 {[%clk 00:25:19]} {[%emt
00:00:01]} 2. Nf3 {[%clk 00:25:27]} {[%emt 00:00:02]} Nc6 {[%clk 00:25:28]}
{[%emt 00:00:01]} 3. d4 {[%clk 00:25:36]} {[%emt 00:00:01]} exd4 {[%clk
00:25:31]} {[%emt 00:00:07]} 4. Bc4 {[%clk 00:25:44]} {[%emt 00:00:02]} Nf6
{[%clk 00:25:34]} {[%emt 00:00:07]} 5. e5 {[%clk 00:25:52]} {[%emt 00:00:01]}
Ng4 {[%clk 00:25:42]} {[%emt 00:00:03]} 6. Nxd4 {[%clk 00:25:04]} {[%emt
00:00:58]} Ncxe5 {[%clk 00:25:33]} {[%emt 00:00:18]} 7. Bb3 {[%clk 00:24:46]}
{[%emt 00:00:28]} Bc5 {[%clk 00:25:27]} {[%emt 00:00:16]} 8. Bf4 {[%clk
00:23:55]} {[%emt 00:01:02]} d6 {[%clk 00:25:22]} {[%emt 00:00:14]} 9. h3
{[%clk 00:22:40]} {[%emt 00:01:25]} Nf6 {[%clk 00:25:22]} {[%emt 00:00:10]} 10.
O-O {[%clk 00:22:00]} {[%emt 00:00:50]} O-O {[%clk 00:25:14]} {[%emt 00:00:18]}
11. Nc3 {[%clk 00:21:13]} {[%emt 00:00:57]} Be6 {[%clk 00:25:07]} {[%emt
00:00:17]} 12. Bxe6 {[%clk 00:20:52]} {[%emt 00:00:31]} fxe6 {[%clk 00:25:15]}
{[%emt 00:00:01]} 13. Nxe6 {[%clk 00:21:01]} {[%emt 00:00:02]} Qd7 {[%clk
00:24:39]} {[%emt 00:00:42]} 14. Nxf8 {[%clk 00:21:03]} {[%emt 00:00:12]} Rxf8
{[%clk 00:24:43]} {[%emt 00:00:05]} 15. Bxe5 {[%clk 00:21:08]} {[%emt
00:00:05]} dxe5 {[%clk 00:24:47]} {[%emt 00:00:05]} 16. Qxd7 {[%clk 00:21:06]}
{[%emt 00:00:13]} Nxd7 {[%clk 00:24:50]} {[%emt 00:00:08]} 17. Rad1 {[%clk
00:21:03]} {[%emt 00:00:13]} Nf6 {[%clk 00:24:36]} {[%emt 00:00:24]} 18. Rfe1
{[%clk 00:20:58]} {[%emt 00:00:15]} Bd4 {[%clk 00:22:46]} {[%emt 00:01:58]} 19.
Re2 {[%clk 00:19:37]} {[%emt 00:01:32]} Nh5 {[%clk 00:21:47]} {[%emt 00:01:04]}
20. g3 {[%emt 00:01:37]} Nxg3 {[%clk 00:20:39]} {[%emt 00:01:14]} 21. Red2
{[%clk 00:18:25]} {[%emt 00:00:03]} Nf5 {[%clk 00:19:32]} {[%emt 00:01:17]} 22.
Kh2 {[%clk 00:14:05]} {[%emt 00:04:30]} Nh4 {[%clk 00:18:30]} {[%emt 00:01:07]}
23. Kg3 {[%clk 00:13:16]} {[%emt 00:01:04]} Nf5+ {[%clk 00:17:47]} {[%emt
00:00:46]} 24. Kh2 {[%clk 00:12:24]} {[%emt 00:01:09]} Nh4 {[%clk 00:17:16]}
{[%emt 00:00:41]} 25. Kh1 {[%clk 00:11:22]} {[%emt 00:01:11]} Bxf2 {[%clk
00:16:35]} {[%emt 00:00:52]} 26. Rf1 {[%clk 00:09:29]} {[%emt 00:02:01]} Bd4
{[%clk 00:15:53]} {[%emt 00:00:53]} 27. Rxf8+ {[%clk 00:09:33]} {[%emt
00:00:08]} Kxf8 {[%clk 00:16:00]} {[%emt 00:00:03]} 28. Nb5 {[%clk 00:08:50]}
{[%emt 00:00:53]} Bb6 {[%clk 00:15:50]} {[%emt 00:00:19]} 29. Re2 {[%clk
00:08:04]} {[%emt 00:00:56]} Ng6 {[%clk 00:15:25]} {[%emt 00:00:35]} 30. Kg2
{[%clk 00:08:18]} {[%emt 00:00:03]} Nf4+ 31. Kf3 Nxe2 {[%clk 00:15:39]} 32.
Kxe2 {[%clk 00:08:27]} Ke7 {[%clk 00:15:47]} {[%emt 00:00:02]} 33. Kd3 {[%clk
00:08:36]} {[%emt 00:00:01]} a6 {[%clk 00:15:51]} {[%emt 00:00:05]} 34. Nc3
{[%clk 00:08:42]} {[%emt 00:00:05]} Kd6 {[%clk 00:15:43]} {[%emt 00:00:16]} 35.
Ke4 {[%clk 00:08:50]} {[%emt 00:00:04]} Bd4 {[%clk 00:15:46]} {[%emt 00:00:07]}
36. Kf5 {[%clk 00:08:32]} {[%emt 00:00:29]} Bxc3 {[%clk 00:15:52]} {[%emt
00:00:03]} 37. bxc3 {[%clk 00:08:41]} {[%emt 00:00:02]} c5 {[%clk 00:15:53]}
{[%emt 00:00:09]} 38. c4 {[%clk 00:08:43]} {[%emt 00:00:08]} b5 {[%clk
00:15:58]} {[%emt 00:00:04]} 39. cxb5 {[%clk 00:08:51]} {[%emt 00:00:03]} axb5
{[%clk 00:16:07]} {[%emt 00:00:01]} 40. c3 {[%clk 00:08:55]} {[%emt 00:00:06]}
Kd5 {[%clk 00:16:15]} {[%emt 00:00:02]} 41. h4 {[%clk 00:08:58]} {[%emt
00:00:07]} e4 {[%clk 00:16:14]} {[%emt 00:00:11]} 42. Kf4 {[%clk 00:09:06]}
{[%emt 00:00:02]} h6 {[%clk 00:16:19]} {[%emt 00:00:05]} 43. Ke3 {[%clk
00:09:04]} {[%emt 00:00:12]} g5 {[%clk 00:16:27]} {[%emt 00:00:02]} 44. hxg5
{[%clk 00:09:11]} {[%emt 00:00:04]} hxg5 {[%clk 00:16:36]} {[%emt 00:00:01]} 45.
a3 {[%clk 00:09:19]} {[%emt 00:00:02]} g4 {[%clk 00:16:44]} {[%emt 00:00:02]}
46. Kf4 {[%clk 00:09:25]} {[%emt 00:00:03]} Kc4 {[%clk 00:16:32]} {[%emt
00:00:21]} 47. Kxe4 {[%clk 00:09:28]} {[%emt 00:00:07]} Kxc3 {[%clk 00:16:39]}
{[%emt 00:00:03]} 48. Kf4 {[%clk 00:09:37]} Kb3 {[%clk 00:16:47]} {[%emt
00:00:03]} 49. Kxg4 {[%clk 00:09:47]} {[%emt 00:00:01]} c4 {[%clk 00:16:56]}
{[%emt 00:00:01]} 50. Kf3 {[%clk 00:09:55]} c3 {[%clk 00:17:04]} {[%emt
00:00:02]} 51. Ke2 {[%clk 00:10:05]} Kb2 {[%clk 00:17:11]} {[%emt 00:00:02]} 52.
Kd3 {[%clk 00:10:13]} {[%emt 00:00:02]} c2 {[%clk 00:17:19]} {[%emt 00:00:02]}
53. Kd4 {[%clk 00:10:19]} {[%emt 00:00:04]} c1=Q {[%clk 00:17:27]} {[%emt
00:00:02]} 54. Kd5 {[%clk 00:10:27]} {[%emt 00:00:02]} Qc3 {[%clk 00:17:34]}
{[%emt 00:00:02]} 55. Ke4 {[%clk 00:10:36]} {[%emt 00:00:02]} Qd2 {[%clk
00:17:42]} {[%emt 00:00:01]} 56. Kf3 {[%clk 00:10:45]} {[%emt 00:00:02]} Qd4
{[%clk 00:17:51]} {[%emt 00:00:01]} 57. Ke2 {[%clk 00:10:53]} {[%emt 00:00:02]}
Qc3 {[%clk 00:17:59]} 58. Kf2 {[%clk 00:11:01]} {[%emt 00:00:03]} Qd3 {[%clk
00:18:08]} {[%emt 00:00:01]} 59. Kg2 {[%clk 00:11:09]} {[%emt 00:00:02]} Qe3
{[%clk 00:18:17]} 60. Kh2 {[%clk 00:11:18]} Qf3 {[%clk 00:18:25]} {[%emt
00:00:01]} 61. Kg1 {[%clk 00:11:27]} {[%emt 00:00:01]} Qe2 {[%clk 00:18:34]}
{[%emt 00:00:01]} 62. Kh1 {[%clk 00:11:36]} Kc3 {[%clk 00:18:43]} 63. a4 {[%clk
00:11:43]} {[%emt 00:00:03]} bxa4 {[%emt 00:00:04]} 64. Kg1 a3 {[%clk
00:19:00]} 0-1



[ePGN "0.1;DGT LiveChess/2.2.6"]

[Event "MČR družstev mladších žáků 2024"]
[Site "Harrachov, Czech Republic"]
[Date "2024.06.16"]
[Round "9.19"]
[White "Frantsev Iegor"]
[Black "Padivy Jan"]
[Result "0-1"]
[TimeControl "25+10"]
[WhiteFideId "23736305"]
[BlackFideId "23752904"]
[WhiteElo "1413"]
[BlackElo "1500"]

1. d4 {[%clk 00:25:18]} {[%emt 00:00:02]} e6 {[%clk 00:25:19]} {[%emt
00:00:02]} 2. Bf4 {[%clk 00:25:25]} {[%emt 00:00:02]} b6 {[%clk 00:25:28]}
{[%emt 00:00:02]} 3. e3 {[%clk 00:25:31]} {[%emt 00:00:04]} Bb7 {[%clk
00:25:36]} {[%emt 00:00:01]} 4. Nf3 {[%clk 00:25:40]} {[%emt 00:00:02]} Nf6
{[%clk 00:25:44]} {[%emt 00:00:02]} 5. c4 {[%clk 00:25:37]} {[%emt 00:00:12]}
Bb4+ {[%clk 00:25:50]} {[%emt 00:00:05]} 6. Nc3 {[%clk 00:25:14]} {[%emt
00:00:34]} d6 {[%clk 00:25:44]} {[%emt 00:00:15]} 7. a3 {[%clk 00:25:09]}
{[%emt 00:00:15]} Bxc3+ {[%clk 00:25:51]} {[%emt 00:00:03]} 8. bxc3 {[%clk
00:25:17]} {[%emt 00:00:01]} Nbd7 {[%clk 00:25:59]} {[%emt 00:00:03]} 9. Bd3
{[%clk 00:24:54]} {[%emt 00:00:33]} O-O {[%clk 00:26:05]} {[%emt 00:00:04]} 10.
O-O {[%clk 00:24:27]} {[%emt 00:00:36]} Re8 {[%clk 00:25:52]} {[%emt 00:00:23]}
11. Qe2 {[%clk 00:23:35]} {[%emt 00:01:03]} e5 {[%clk 00:25:19]} {[%emt
00:00:42]} 12. dxe5 {[%clk 00:21:03]} {[%emt 00:02:43]} dxe5 {[%clk 00:25:24]}
{[%emt 00:00:05]} 13. Nxe5 {[%clk 00:20:45]} {[%emt 00:00:29]} Nxe5 {[%clk
00:25:30]} {[%emt 00:00:03]} 14. Rad1 {[%clk 00:20:12]} {[%emt 00:00:43]} Qe7
{[%clk 00:24:51]} {[%emt 00:00:47]} 15. Bf5 {[%clk 00:20:00]} {[%emt 00:00:24]}
Rad8 {[%clk 00:24:19]} {[%emt 00:00:40]} 16. Rd4 {[%clk 00:19:46]} {[%emt
00:00:26]} Rxd4 {[%clk 00:24:18]} {[%emt 00:00:11]} 17. cxd4 {[%clk 00:19:55]}
{[%emt 00:00:01]} Ng6 {[%clk 00:24:06]} {[%emt 00:00:22]} 18. Bg3 {[%clk
00:19:51]} {[%emt 00:00:14]} Qxa3 {[%clk 00:23:17]} {[%emt 00:00:56]} 19. Bxc7
{[%clk 00:19:59]} {[%emt 00:00:05]} Nh4 {[%clk 00:21:47]} {[%emt 00:01:38]} 20.
Bh3 {[%clk 00:19:47]} {[%emt 00:00:23]} Qa4 {[%clk 00:21:03]} {[%emt 00:00:32]}
21. Be5 {[%clk 00:18:43]} {[%emt 00:01:37]} Ba6 {[%clk 00:19:14]} {[%emt
00:01:56]} 22. Bxf6 {[%clk 00:17:53]} {[%emt 00:01:02]} gxf6 {[%clk 00:19:07]}
{[%emt 00:00:17]} 23. Rc1 {[%clk 00:11:20]} {[%emt 00:06:44]} Ng6 {[%clk
00:17:57]} {[%emt 00:01:19]} 24. Bf5 {[%clk 00:11:07]} {[%emt 00:00:24]} Bc8
{[%clk 00:17:36]} {[%emt 00:00:27]} 25. Bc2 {[%clk 00:10:36]} {[%emt 00:00:44]}
Qd7 {[%clk 00:17:03]} {[%emt 00:00:39]} 26. h3 {[%clk 00:09:59]} {[%emt
00:00:51]} Qxd4 {[%clk 00:16:08]} {[%emt 00:01:06]} 27. Ba4 {[%clk 00:09:59]}
{[%emt 00:00:10]} Re7 {[%clk 00:15:54]} {[%emt 00:00:20]} 28. Rd1 {[%clk
00:10:03]} {[%emt 00:00:09]} Qc5 {[%clk 00:15:22]} {[%emt 00:00:29]} 29. Rd5
{[%clk 00:08:51]} {[%emt 00:01:36]} Qc7 {[%clk 00:15:00]} {[%emt 00:00:27]} 30.
Qd1 {[%clk 00:06:59]} {[%emt 00:02:06]} Bb7 {[%clk 00:10:46]} {[%emt 00:04:09]}
31. Rd6 {[%clk 00:06:26]} {[%emt 00:00:59]} Qxc4 {[%clk 00:04:21]} {[%emt
00:06:35]} 32. Rxf6 {[%clk 00:05:56]} {[%emt 00:00:40]} Qe4 {[%clk 00:03:26]}
{[%emt 00:00:59]} 33. Rf3 {[%clk 00:04:15]} {[%emt 00:01:56]} Bc6 {[%clk
00:02:20]} {[%emt 00:01:17]} 34. Bb3 {[%clk 00:02:51]} {[%emt 00:01:34]} Rd7
{[%clk 00:01:57]} {[%emt 00:00:32]} 35. Qc1 {[%clk 00:02:16]} {[%emt 00:00:45]}
Kg7 {[%clk 00:00:17]} {[%emt 00:01:51]} 36. Qc3+ {[%clk 00:02:10]} {[%emt
00:00:16]} Kg8 {[%clk 00:00:23]} {[%emt 00:00:03]} 37. Bc2 {[%clk 00:01:36]}
{[%emt 00:00:45]} Qd5 {[%clk 00:00:22]} {[%emt 00:00:12]} 38. Bb3 {[%clk
00:01:05]} {[%emt 00:00:40]} Qc5 {[%clk 00:00:23]} {[%emt 00:00:09]} 39. Bxf7+
{[%clk 00:00:13]} {[%emt 00:01:02]} Rxf7 {[%clk 00:00:27]} {[%emt 00:00:05]} 40.
Qb3 {[%clk 00:00:21]} {[%emt 00:00:02]} Bxf3 {[%clk 00:00:34]} {[%emt
00:00:04]} 0-1



[ePGN "0.1;DGT LiveChess/2.2.6"]

[Event "MČR družstev mladších žáků 2024"]
[Site "Harrachov, Czech Republic"]
[Date "2024.06.16"]
[Round "9.2"]
[White "Zika Miroslav"]
[Black "Artamonov Mikhail"]
[Result "1/2-1/2"]
[TimeControl "25+10"]
[WhiteFideId "23746610"]
[BlackFideId "23732946"]
[WhiteElo "1311"]
[BlackElo "1515"]

1. c4 {[%clk 00:25:18]} {[%emt 00:00:02]} Nf6 {[%clk 00:25:19]} {[%emt
00:00:01]} 2. Nc3 {[%clk 00:25:27]} {[%emt 00:00:01]} d6 {[%clk 00:25:28]} 3.
Nf3 {[%clk 00:25:36]} {[%emt 00:00:01]} g6 {[%clk 00:25:37]} {[%emt 00:00:01]}
4. g3 {[%clk 00:25:41]} {[%emt 00:00:04]} Bg7 {[%clk 00:25:46]} 5. Bg2 {[%clk
00:25:51]} {[%emt 00:00:01]} O-O {[%clk 00:25:55]} {[%emt 00:00:02]} 6. O-O
{[%clk 00:25:59]} {[%emt 00:00:01]} e5 {[%clk 00:26:04]} 7. d3 {[%clk
00:26:06]} {[%emt 00:00:04]} Nc6 {[%clk 00:26:12]} {[%emt 00:00:02]} 8. Bg5
{[%clk 00:26:10]} {[%emt 00:00:05]} Be6 {[%clk 00:25:44]} {[%emt 00:00:38]} 9.
a3 {[%clk 00:26:08]} {[%emt 00:00:13]} h6 {[%clk 00:23:47]} {[%emt 00:02:07]}
10. Bxf6 {[%clk 00:26:13]} {[%emt 00:00:05]} Bxf6 {[%clk 00:23:47]} {[%emt
00:00:11]} 11. Rc1 {[%clk 00:25:54]} {[%emt 00:00:28]} a5 {[%clk 00:23:22]}
{[%emt 00:00:35]} 12. Qd2 {[%clk 00:25:44]} {[%emt 00:00:20]} Bg7 {[%clk
00:23:22]} {[%emt 00:00:09]} 13. e3 {[%clk 00:24:09]} {[%emt 00:01:46]} Bg4
{[%clk 00:20:18]} {[%emt 00:03:15]} 14. h3 {[%clk 00:23:47]} {[%emt 00:00:32]}
Bxf3 {[%clk 00:20:05]} {[%emt 00:00:22]} 15. Bxf3 {[%clk 00:23:54]} {[%emt
00:00:02]} Qd7 {[%clk 00:19:13]} {[%emt 00:01:02]} 16. Bg2 {[%clk 00:23:44]}
{[%emt 00:00:20]} Rae8 {[%clk 00:17:50]} {[%emt 00:01:34]} 17. Nd5 {[%clk
00:23:15]} {[%emt 00:00:39]} b6 {[%clk 00:16:07]} {[%emt 00:01:53]} 18. Rce1
{[%clk 00:23:04]} {[%emt 00:00:20]} Ne7 {[%clk 00:15:27]} {[%emt 00:00:51]} 19.
b4 {[%clk 00:20:19]} {[%emt 00:02:55]} Nxd5 {[%clk 00:15:14]} {[%emt 00:00:22]}
20. Bxd5 {[%clk 00:20:17]} {[%emt 00:00:13]} axb4 {[%clk 00:14:57]} {[%emt
00:00:27]} 21. axb4 {[%clk 00:20:21]} {[%emt 00:00:06]} Qxh3 {[%clk 00:14:16]}
{[%emt 00:00:51]} 22. Bg2 {[%clk 00:20:17]} {[%emt 00:00:14]} Qh5 {[%clk
00:13:54]} {[%emt 00:00:32]} 23. Ra1 {[%clk 00:19:58]} {[%emt 00:00:29]} e4
{[%clk 00:13:30]} {[%emt 00:00:35]} 24. d4 {[%clk 00:20:03]} {[%emt 00:00:04]}
c5 {[%clk 00:13:06]} {[%emt 00:00:33]} 25. Ra6 {[%clk 00:18:58]} {[%emt
00:01:14]} cxd4 {[%clk 00:12:32]} {[%emt 00:00:44]} 26. exd4 {[%clk 00:18:36]}
{[%emt 00:00:32]} Qg4 {[%clk 00:11:01]} {[%emt 00:01:42]} 27. Re1 {[%clk
00:15:42]} {[%emt 00:03:03]} e3 {[%clk 00:09:27]} {[%emt 00:01:44]} 28. Rxe3
{[%clk 00:14:37]} {[%emt 00:01:15]} Bxd4 {[%clk 00:08:18]} {[%emt 00:01:20]} 29.
Rd3 {[%clk 00:12:47]} {[%emt 00:02:00]} Bg7 {[%clk 00:07:05]} {[%emt 00:01:23]}
30. Rxb6 {[%clk 00:10:47]} {[%emt 00:02:10]} Re2 {[%clk 00:06:58]} {[%emt
00:00:16]} 31. Qf4 {[%emt 00:02:18]} 1/2-1/2



[ePGN "0.1;DGT LiveChess/2.2.6"]

[Event "MČR družstev mladších žáků 2024"]
[Site "Harrachov, Czech Republic"]
[Date "2024.06.16"]
[Round "9.20"]
[White "Koupil Stepan"]
[Black "Mauric Jan"]
[Result "1-0"]
[TimeControl "25+10"]
[WhiteFideId "23742119"]
[BlackFideId "23744200"]
[WhiteElo "1423"]
[BlackElo "1306"]

1. e4 {[%clk 00:25:17]} {[%emt 00:00:02]} e6 {[%clk 00:25:19]} {[%emt
00:00:01]} 2. d4 {[%emt 00:00:04]} b6 {[%clk 00:25:25]} {[%emt 00:00:03]} 3.
Nc3 {[%clk 00:25:23]} {[%emt 00:00:12]} Bb7 {[%clk 00:25:34]} {[%emt 00:00:02]}
4. Nf3 {[%clk 00:25:30]} {[%emt 00:00:03]} Bb4 {[%clk 00:25:41]} {[%emt
00:00:01]} 5. Bd3 {[%clk 00:25:35]} {[%emt 00:00:06]} Ne7 {[%clk 00:25:40]}
{[%emt 00:00:12]} 6. O-O {[%clk 00:25:39]} {[%emt 00:00:05]} O-O {[%clk
00:25:46]} {[%emt 00:00:04]} 7. Bf4 {[%clk 00:25:14]} {[%emt 00:00:35]} Bxc3
{[%clk 00:25:48]} {[%emt 00:00:08]} 8. bxc3 {[%clk 00:25:22]} {[%emt 00:00:02]}
h6 {[%clk 00:25:30]} {[%emt 00:00:29]} 9. Qd2 {[%clk 00:24:55]} {[%emt
00:00:36]} f5 {[%clk 00:18:45]} {[%emt 00:06:55]} 10. exf5 {[%clk 00:18:20]}
{[%emt 00:06:45]} Nxf5 {[%clk 00:18:24]} {[%emt 00:00:31]} 11. Ne5 {[%clk
00:17:46]} {[%emt 00:00:43]} d6 {[%clk 00:14:14]} {[%emt 00:04:21]} 12. Nc4
{[%clk 00:17:31]} {[%emt 00:00:24]} Qf6 {[%clk 00:13:03]} {[%emt 00:01:23]} 13.
Bg3 {[%clk 00:15:16]} {[%emt 00:02:24]} Nd7 {[%clk 00:11:27]} {[%emt 00:01:46]}
14. Rae1 {[%clk 00:14:20]} {[%emt 00:01:04]} Rae8 {[%clk 00:11:23]} {[%emt
00:00:17]} 15. Ne3 {[%clk 00:12:50]} {[%emt 00:01:38]} Nh4 {[%clk 00:07:56]}
{[%emt 00:03:38]} 16. Bxh4 {[%clk 00:08:53]} {[%emt 00:04:07]} Qxh4 {[%clk
00:08:04]} {[%emt 00:00:02]} 17. f3 {[%clk 00:08:58]} {[%emt 00:00:05]} Qg5
{[%clk 00:07:41]} {[%emt 00:00:33]} 18. Kh1 {[%clk 00:07:46]} {[%emt 00:01:22]}
Rf4 {[%clk 00:04:55]} {[%emt 00:02:57]} 19. Re2 {[%clk 00:04:54]} {[%emt
00:03:01]} Ref8 {[%clk 00:04:56]} {[%emt 00:00:10]} 20. Ref2 {[%clk 00:04:31]}
{[%emt 00:00:32]} e5 {[%clk 00:03:23]} {[%emt 00:01:44]} 21. Bc4+ {[%clk
00:02:56]} {[%emt 00:01:44]} Kh8 {[%clk 00:03:00]} {[%emt 00:00:33]} 22. Bd5
{[%clk 00:02:44]} {[%emt 00:00:21]} Bxd5 {[%clk 00:02:02]} {[%emt 00:01:09]} 23.
Nxd5 {[%clk 00:02:47]} {[%emt 00:00:07]} Qg6 {[%clk 00:01:41]} {[%emt
00:00:31]} 24. Nxf4 {[%clk 00:02:35]} {[%emt 00:00:22]} Rxf4 {[%clk 00:01:42]}
{[%emt 00:00:09]} 25. dxe5 {[%clk 00:02:41]} {[%emt 00:00:03]} Nxe5 {[%clk
00:01:49]} {[%emt 00:00:04]} 26. Qxf4 {[%clk 00:02:47]} {[%emt 00:00:04]} 1-0



[ePGN "0.1;DGT LiveChess/2.2.6"]

[Event "MČR družstev mladších žáků 2024"]
[Site "Harrachov, Czech Republic"]
[Date "2024.06.16"]
[Round "9.21"]
[White "Hujova Tess"]
[Black "Sara David"]
[Result "0-1"]
[TimeControl "25+10"]
[WhiteFideId "23744936"]
[BlackFideId "23746599"]
[WhiteElo "1311"]
[BlackElo "1379"]

1. b4 {[%clk 00:25:18]} {[%emt 00:00:01]} e5 {[%clk 00:25:18]} {[%emt
00:00:02]} 2. Bb2 {[%clk 00:25:26]} {[%emt 00:00:01]} d6 {[%clk 00:25:24]}
{[%emt 00:00:05]} 3. e3 {[%clk 00:25:32]} {[%emt 00:00:04]} Nf6 {[%clk
00:25:31]} {[%emt 00:00:03]} 4. d3 {[%clk 00:25:39]} {[%emt 00:00:03]} Be7
{[%clk 00:25:37]} {[%emt 00:00:04]} 5. Be2 {[%clk 00:25:47]} {[%emt 00:00:02]}
Be6 {[%clk 00:25:44]} {[%emt 00:00:03]} 6. Nd2 {[%clk 00:25:50]} {[%emt
00:00:07]} Nbd7 {[%clk 00:25:52]} {[%emt 00:00:02]} 7. Ngf3 {[%clk 00:25:55]}
{[%emt 00:00:06]} O-O {[%clk 00:25:53]} {[%emt 00:00:08]} 8. O-O {[%clk
00:26:01]} {[%emt 00:00:04]} Nb6 {[%clk 00:25:31]} {[%emt 00:00:32]} 9. c4
{[%clk 00:25:52]} {[%emt 00:00:19]} Qd7 {[%clk 00:25:27]} {[%emt 00:00:13]} 10.
a4 {[%clk 00:25:42]} {[%emt 00:00:21]} Ne8 {[%clk 00:24:29]} {[%emt 00:01:08]}
11. Qc2 {[%clk 00:24:59]} {[%emt 00:00:52]} f5 {[%clk 00:24:07]} {[%emt
00:00:32]} 12. a5 {[%clk 00:24:44]} {[%emt 00:00:26]} Nc8 {[%clk 00:24:13]}
{[%emt 00:00:03]} 13. Rac1 {[%clk 00:23:05]} {[%emt 00:01:50]} Rf6 {[%clk
00:24:15]} {[%emt 00:00:08]} 14. Nb3 {[%clk 00:22:34]} {[%emt 00:00:40]} Rg6
{[%clk 00:24:15]} {[%emt 00:00:11]} 15. c5 {[%clk 00:22:15]} {[%emt 00:00:29]}
f4 {[%clk 00:24:06]} {[%emt 00:00:19]} 16. exf4 {[%clk 00:20:57]} {[%emt
00:01:28]} Bh3 {[%clk 00:23:57]} {[%emt 00:00:18]} 17. Ng5 {[%clk 00:20:22]}
{[%emt 00:00:45]} Bxg5 {[%clk 00:23:51]} {[%emt 00:00:16]} 18. fxg5 {[%clk
00:20:30]} {[%emt 00:00:03]} Rxg5 {[%clk 00:23:32]} {[%emt 00:00:29]} 19. Bf3
{[%clk 00:20:35]} {[%emt 00:00:05]} Qf7 {[%clk 00:23:01]} {[%emt 00:00:40]} 20.
Qc4 {[%clk 00:19:23]} {[%emt 00:01:22]} Be6 {[%clk 00:23:06]} {[%emt 00:00:05]}
21. Qe4 {[%clk 00:19:06]} {[%emt 00:00:26]} Bxb3 {[%clk 00:22:32]} {[%emt
00:00:46]} 22. Qxb7 {[%clk 00:19:08]} {[%emt 00:00:08]} Rb8 {[%clk 00:18:29]}
{[%emt 00:04:13]} 23. Qxb8 {[%clk 00:18:58]} {[%emt 00:00:20]} Qxf3 {[%clk
00:18:31]} {[%emt 00:00:08]} 24. g3 {[%clk 00:19:03]} {[%emt 00:00:05]} Bd5
{[%clk 00:18:37]} {[%emt 00:00:03]} 25. Qxc8 {[%clk 00:18:49]} {[%emt
00:00:25]} Qg2# {[%clk 00:18:44]} {[%emt 00:00:04]} 0-1



[ePGN "0.1;DGT LiveChess/2.2.6"]